[Event "6th Uppsala Young Champions 2019"]
[Site "Uppsala"]
[Date "2019.10.29"]
[Round "7.16"]
[White "Skahlberg Bjerknes-Lima de Far, Warg"]
[Black "Falkevall, Axel"]
[Result "0-1"]
[ECO "D43"]
[WhiteElo "1637"]
[BlackElo "2036"]
[Annotator "NA"]
[PlyCount "134"]
[EventDate "2019.10.25"]
[EventType "swiss"]
[EventCountry "SWE"]
[SourceTitle "playchess.com"]
[Source "ChessBase"]
[SourceQuality "1"]
[TimeControl "5400+30"]

1. c4 {[%emt 1:30:30]} Nf6 {[%emt 1:30:30]} 2. Nc3 {[%emt 0:00:30]} e6 {[%emt 0:00:30]} 3. Nf3 {[%emt 0:00:30]} d5 {[%emt 0:00:30]} 4. d4 {[%emt 0:00:30]} Bb4 {[%emt 0:00:30]} 5. Bg5 {[%emt 0:00:30]} h6 {[%emt 0:00:30]} 6. Bh4 {[%emt 0:00:30]} dxc4 {[%emt 0:00:30]} 7. e3 {[%emt 0:00:30]} b5 {[%emt 0:00:30]} 8. a4 {[%emt 0:00:30]} c6 {[%emt 0:00:30]} 9. Nd2 {[%emt 0:00:30]} Bb7 {[%emt 0:00:30]} 10. Be2 {[%emt 0:00:30]} Nbd7 {[%emt 0:00:30]} 11. O-O {[%emt 0:00:30]} a6 {[%emt 0:00:30]} 12. Nde4 {[%emt 0:00:30]} Be7 {[%emt 0:00:30]} 13. Bg3 {[%emt 0:00:30]} Nxe4 {[%emt 0:00:30]} 14. Nxe4 {[%emt 0:00:30]} Nf6 {[%emt 0:00:30]} 15. Nc5 {[%emt 0:00:30]} Bxc5 {[%emt 0:00:30]} 16. dxc5 {[%emt 0:00:30]} Qxd1 {[%emt 0:00:30]} 17. Rfxd1 {[%emt 0:00:30]} Ne4 $17 {[%emt 0:00:30]} 18. Bd6 {[%emt 0:00:30]} Nxd6 {[%emt 0:00:30]} 19. cxd6 {[%emt 0:00:30]} Kd7 {[%emt 0:00:30]} 20. e4 {[%emt 0:00:30]} f6 {[%emt 0:00:30]} 21. f4 {[%emt 0:00:30]} g5 {[%emt 0:00:30]} 22. g3 {[%emt 0:00:30]} Raf8 {[%emt 0:00:30]} 23. Rd2 {[%emt 0:00:30]} h5 {[%emt 0:00:30]} 24. fxg5 {[%emt 0:00:30]} fxg5 {[%emt 0:00:30]} 25. Rf1 {[%emt 0:00:30]} Rxf1+ {[%emt 0:00:30]} 26. Bxf1 {[%emt 0:00:30]} e5 {[%emt 0:00:30]} 27. Be2 {[%emt 0:00:30]} Rh6 {[%emt 0:00:30]} 28. h3 {[%emt 0:00:30]} c5 {[%emt 0:00:30]} 29. axb5 {[%emt 0:00:30]} axb5 {[%emt 0:00:30]} 30. Bf3 {[%emt 0:00:30]} Rxd6 {[%emt 0:00:30]} 31. Rxd6+ {[%emt 0:00:30]} Kxd6 {[%emt 0:00:30]} 32. Kf2 {[%emt 0:00:30]} Bc8 {[%emt 0:00:30]} 33. Bxh5 {[%emt 0:00:30]} Bxh3 {[%emt 0:00:30]} 34. Be2 {[%emt 0:00:30]} Be6 {[%emt 0:00:30]} 35. Ke3 {[%emt 0:00:30]} Kc6 {[%emt 0:00:30]} 36. Kd2 {[%emt 0:00:30]} Kb6 {[%emt 0:00:30]} 37. Kc2 {[%emt 0:00:30]} Bh3 {[%emt 0:00:30]} 38. Kd2 {[%emt 0:00:30]} Be6 {[%emt 0:00:30]} 39. Kc3 {[%emt 0:00:30]} Ka5 {[%emt 0:00:30]} 40. Bd1 {[%emt 0:00:30]} Bd7 {[%emt 0:00:30]} 41. Be2 {[%emt 0:00:30]} Bh3 {[%emt 0:00:30]} 42. Bd1 {[%emt 0:00:30]} Bg2 {[%emt 0:00:30]} 43. Bc2 {[%emt 0:00:30]} Bf1 {[%emt 0:00:30]} 44. Bd1 {[%emt 0:00:30]} Bd3 {[%emt 0:00:30]} 45. Bf3 {[%emt 0:00:30]} g4 {[%emt 0:00:30]} 46. Bxg4 {[%emt 0:00:30]} Bxe4 {[%emt 0:00:30]} 47. Be2 {[%emt 0:00:30]} Kb6 {[%emt 0:00:30]} 48. g4 {[%emt 0:00:30]} Kc6 {[%emt 0:00:30]} 49. Kd2 {[%emt 0:00:30]} Kd6 {[%emt 0:00:30]} 50. Ke3 {[%emt 0:00:30]} Bd5 {[%emt 0:00:30]} 51. g5 {[%emt 0:00:30]} Ke7 {[%emt 0:00:30]} 52. Bg4 {[%emt 0:00:30]} b4 {[%emt 0:00:30]} 53. Bf5 {[%emt 0:00:30]} Kf7 {[%emt 0:00:30]} 54. Kd2 {[%emt 0:00:30]} Kg7 {[%emt 0:00:30]} 55. Kc2 {[%emt 0:00:30]} Bf7 {[%emt 0:00:30]} 56. Kd2 {[%emt 0:00:30]} Bg6 {[%emt 0:00:30]} 57. Bg4 {[%emt 0:00:30]} Be4 {[%emt 0:00:30]} 58. Bh5 {[%emt 0:00:30]} Bd5 {[%emt 0:00:30]} 59. Ke3 {[%emt 0:00:30]} Bg8 {[%emt 0:00:30]} 60. Ke4 {[%emt 0:00:30]} c3 {[%emt 0:00:30]} 61. bxc3 {[%emt 0:00:30]} b3 {[%emt 0:00:30]} 62. Kd3 {[%emt 0:00:30]} Bh7+ {[%emt 0:00:30]} 63. g6 {[%emt 0:00:30]} Bxg6+ {[%emt 0:00:30]} 64. Bxg6 {[%emt 0:00:30]} Kxg6 {[%emt 0:00:30]} 65. c4 {[%emt 0:00:30]} e4+ {[%emt 0:00:30]} 66. Kc3 {[%emt 0:00:30]} e3 {[%emt 0:00:30]} 67. Kxb3 {[%emt 0:00:30]} e2 {[%emt 0:00:30]} 0-1

[Event "6th Uppsala Young Champions 2019"]
[Site "Uppsala"]
[Date "2019.10.30"]
[Round "8.1"]
[White "Thorhallsson, Simon"]
[Black "Roshka, Yevgeniy"]
[Result "0-1"]
[ECO "A67"]
[WhiteElo "2190"]
[BlackElo "2369"]
[Annotator "NA"]
[PlyCount "92"]
[EventDate "2019.10.25"]
[EventType "swiss"]
[EventCountry "SWE"]
[SourceTitle "playchess.com"]
[Source "ChessBase"]
[SourceQuality "1"]
[TimeControl "5400+30"]

1. d4 {[%emt 0:00:00]} Nf6 {[%emt 0:08:51]} 2. c4 {[%emt 0:00:10]} c5 {[%emt 0:00:04]} 3. d5 {[%emt 0:00:50]} e6 {[%emt 0:00:02]} 4. Nc3 {[%emt 0:00:09]} exd5 {[%emt 0:00:01]} 5. cxd5 {[%emt 0:00:14]} d6 {[%emt 0:00:01]} 6. e4 {[%emt 0:01:17]} g6 {[%emt 1:24:01]} 7. f4 {[%emt 0:01:41]} Bg7 {[%emt 0:00:00]} 8. Bb5+ {[%emt 0:00:07]} Nfd7 {[%emt 0:00:00]} 9. a4 {[%emt 1:30:02]} O-O {[%emt 0:01:30]} 10. Nf3 {[%emt 0:00:00]} Na6 {[%emt 0:00:00]} 11. O-O {[%emt 0:00:00]} Nc7 {[%emt 0:00:00]} 12. Bd3 {[%emt 0:00:00]} a6 {[%emt 0:00:00]} 13. a5 {[%emt 0:00:00] A67: Modern Benoni: Taimanov Variation} (13. f5 Rb8 14. Bg5 Bf6 15. Bxf6 Qxf6 16. Kh1 b5 17. e5 dxe5 18. fxg6 hxg6 19. Nd4 Qh4 20. Nc6 Rb6 {1-0 (39) Garcia Cardenas,P (2449)-Olivares Olivares,C (2387) Santiago de Chile 2019}) 13... b5 {[%emt 0:00:00]} 14. axb6 {[%emt 0:00:00]} Nxb6 {[%emt 0:00:00]} 15. f5 {[%emt 0:00:00]} c4 $146 {[%emt 0:00:00]} (15... Rb8 $142) ({Predecessor:} 15... Bb7 16. Bf4 c4 17. Bc2 Nb5 18. Qd2 gxf5 19. Nxb5 axb5 20. Rxa8 Bxa8 {0-1 (30) Schwarz,A (2230)-Turcan,M (2150) Balatonbereny 1996}) 16. Bc2 {[%emt 0:00:00]} Bf6 {[%emt 0:00:00]} (16... Nd7 $16) 17. Qe1 {[%emt 0:00:00]} (17. Bh6 $18) 17... Nb5 {[%emt 0:00:00]} 18. Nxb5 {[%emt 0:00:00]} axb5 {[%emt 0:00:00]} 19. Rxa8 {[%emt 0:00:00]} Nxa8 {[%emt 0:00:00]} 20. Qg3 {[%emt 0:00:00]} b4 {[%emt 0:00:00]} (20... Nc7 $16) 21. Bh6 {[%emt 0:00:00]} b3 {[%emt 0:00:00]} 22. Bb1 {[%emt 0:00:00]} ({But not} 22. Bxf8 Qxf8 23. Bb1 Nb6 $16) (22. fxg6 $18 hxg6 23. Bxf8 Kxf8 24. Bb1) 22... Bg7 {[%emt 0:00:00]} 23. Bxg7 $18 {[%emt 0:00:00]} Kxg7 {[%emt 0:00:00]} 24. e5 {[%emt 0:00:00]} dxe5 {[%emt 0:00:00]} 25. Ng5 {[%emt 0:00:00]} Qxd5 {[%emt 0:00:00]} 26. Nxh7 {[%emt 0:00:00]} Qd4+ {[%emt 0:00:00]} 27. Kh1 {[%emt 0:00:00]} Bxf5 {[%emt 0:00:00]} 28. Nxf8 {[%emt 0:00:00]} Bxb1 {[%emt 0:00:00]} 29. Qf3 {[%emt 0:01:05]} Bf5 {[%emt 0:00:00]} 30. Qxa8 {[%emt 0:00:29]} Qxb2 {[%emt 0:00:00]} 31. Qe8 {[%emt 0:07:43]} Qd4 {[%emt 0:02:33]} 32. Nh7 {[%emt 0:00:55]} Qd7 {[%emt 0:00:42]} 33. Qxd7 {[%emt 0:01:13]} Bxd7 {[%emt 0:00:01]} 34. Ng5 {[%emt 0:00:15]} Bf5 {[%emt 0:00:45]} 35. g4 {[%emt 0:00:47]} Bc2 {[%emt 0:01:26]} 36. Rxf7+ {[%emt 0:00:09]} Kg8 {[%emt 0:00:01]} 37. Rb7 {[%emt 0:00:30]} c3 {[%emt 0:00:06]} 38. Rb8+ {[%emt 0:00:25]} Kg7 {[%emt 0:00:04]} 39. Rb7+ {[%emt 0:00:33]} Kf8 {[%emt 0:00:58]} 40. Ne6+ {[%emt 0:00:50]} Kg8 {[%emt 0:01:02]} 41. Nc5 {[%emt 0:00:33]} b2 {[%emt 0:00:24]} 42. Kg1 {[%emt 0:00:15]} Be4 {[%emt 0:02:42]} 43. Nxe4 {[%emt 0:00:47]} c2 {[%emt 0:00:00]} 44. Nf6+ {[%emt 0:00:19]} Kf8 {[%emt 0:00:01]} 45. Nh7+ {[%emt 0:00:23]} Ke8 {[%emt 0:00:01]} 46. Nf6+ {[%emt 0:00:09]} Kd8 {[%emt 0:00:01]} 0-1

[Event "6th Uppsala Young Champions 2019"]
[Site "Uppsala"]
[Date "2019.10.30"]
[Round "8.2"]
[White "Pantzar, Milton"]
[Black "Sorensen, Hampus"]
[Result "1/2-1/2"]
[ECO "D11"]
[WhiteElo "2376"]
[BlackElo "2330"]
[Annotator "NA"]
[PlyCount "116"]
[EventDate "2019.10.25"]
[EventType "swiss"]
[EventCountry "SWE"]
[SourceTitle "playchess.com"]
[Source "ChessBase"]
[SourceQuality "1"]
[TimeControl "5400+30"]

1. d4 {[%emt 0:00:00]} d5 {[%emt 0:00:05]} 2. c4 {[%emt 0:00:00]} c6 {[%emt 0:00:45]} 3. Nf3 {[%emt 0:00:51]} Nf6 {[%emt 0:00:11]} 4. Nbd2 {[%emt 0:00:08]} Bf5 {[%emt 0:07:34]} 5. Nh4 {[%emt 0:00:27]} Be4 {[%emt 0:06:49]} 6. Qb3 {[%emt 0:00:31] D11: Slav Defence: 3 Nf3 sidelines and 3...Nf6 4 e3 Bg4} (6. Nxe4 Nxe4 7. Nf3 e6 8. a3 Nd7 9. e3 Bd6 10. Bd3 f5 11. O-O O-O 12. b4 Qf6 {0-1 (56) Ipatov,A (2650)-Robson,R (2653) Saint Louis 2019}) 6... Qb6 {[%emt 0:04:07]} 7. f3 {[%emt 0:00:26]} Bg6 {[%emt 0:02:46]} 8. Qxb6 $146 {[%emt 0:03:11]} ({Predecessor:} 8. Nxg6 hxg6 9. cxd5 cxd5 10. Qxb6 {½-½ (91) Kalavannan,K (2277)-Marusenko,P (2144) Cardiff 2018}) 8... axb6 {[%emt 0:00:18]} 9. cxd5 {[%emt 0:00:08]} cxd5 {[%emt 0:01:30]} 10. Nxg6 {[%emt 0:00:28]} hxg6 {[%emt 0:00:07]} 11. e3 {[%emt 0:00:18]} e6 {[%emt 0:01:03]} 12. Kf2 {[%emt 0:03:12]} Bd6 {[%emt 0:03:11]} 13. h3 {[%emt 0:01:32]} O-O {[%emt 0:01:24]} 14. Be2 {[%emt 0:06:19]} Nc6 {[%emt 0:02:24]} 15. Rd1 {[%emt 0:03:04]} Rfc8 {[%emt 0:02:48]} 16. Nb3 {[%emt 0:09:00]} Ne8 {[%emt 0:06:37]} 17. a3 {[%emt 0:10:27]} Be7 {[%emt 0:02:29]} 18. Bd2 {[%emt 0:10:07]} Nd6 {[%emt 0:00:51]} 19. Rac1 {[%emt 0:14:18]} Na7 {[%emt 0:03:00]} 20. Rxc8+ {[%emt 0:02:54]} Rxc8 {[%emt 0:00:14]} 21. Bd3 {[%emt 0:05:46]} Nc4 {[%emt 0:05:04]} 22. Bc1 {[%emt 0:00:17]} Bg5 {[%emt 0:02:50]} 23. Ke2 {[%emt 0:04:09]} Nd6 $14 {[%emt 0:01:22]} 24. Nd2 {[%emt 0:03:24]} Nf5 {[%emt 0:01:01]} 25. f4 {[%emt 0:02:22]} Bf6 {[%emt 0:04:03]} 26. Nb1 {[%emt 0:02:28]} Nd6 {[%emt 0:40:27]} 27. b3 {[%emt 0:00:34]} Nc6 {[%emt 0:00:00]} 28. Bb2 {[%emt 0:00:42]} g5 {[%emt 0:00:00]} 29. g3 {[%emt 0:01:38]} gxf4 {[%emt 0:00:00]} 30. gxf4 {[%emt 0:00:04]} g6 {[%emt 0:00:00]} 31. Nd2 {[%emt 0:02:00]} Kg7 {[%emt 0:00:00]} 32. Rh1 {[%emt 0:02:17]} Ne7 {[%emt 0:00:00]} 33. Kf2 {[%emt 0:01:34]} Nef5 {[%emt 0:00:00]} 34. a4 {[%emt 0:02:09]} g5 {[%emt 0:00:00]} 35. Rg1 {[%emt 0:02:18]} Kh6 {[%emt 0:00:00]} 36. Kf3 {[%emt 0:03:31]} Nh4+ {[%emt 0:00:00]} 37. Ke2 {[%emt 0:00:08]} gxf4 {[%emt 0:00:00]} 38. exf4 {[%emt 0:00:11]} Ndf5 {[%emt 0:00:00]} 39. Bxf5 {[%emt 0:00:53]} Nxf5 {[%emt 0:00:00]} 40. Kd3 {[%emt 0:00:06]} Kh5 {[%emt 0:00:00]} 41. Nf3 {[%emt 0:00:29]} Nd6 {[%emt 0:00:14]} 42. Nd2 {[%emt 0:02:33]} Kh4 {[%emt 0:02:48]} 43. Ba3 {[%emt 0:00:26]} Nf5 {[%emt 0:00:31]} 44. Nf3+ {[%emt 0:00:05]} Kxh3 {[%emt 0:00:11]} 45. Bb4 {[%emt 0:00:35]} Nh4 {[%emt 0:01:37]} 46. Nxh4 {[%emt 0:01:07]} Kxh4 {[%emt 0:00:09]} 47. Bd6 {[%emt 0:00:53]} Kh5 {[%emt 0:00:39]} 48. Be5 {[%emt 0:00:15]} Bxe5 {[%emt 0:02:08]} 49. fxe5 {[%emt 0:00:01]} Kh6 {[%emt 0:00:16]} 50. Kd2 {[%emt 0:00:41]} Kh7 {[%emt 0:00:52]} 51. Kd3 {[%emt 0:00:25]} Rc6 {[%emt 0:00:11]} 52. Kd2 {[%emt 0:01:47]} b5 {[%emt 0:00:37]} 53. axb5 {[%emt 0:03:21]} Rb6 {[%emt 0:00:01]} 54. b4 {[%emt 0:00:00]} Rxb5 {[%emt 0:00:36]} 55. Rb1 {[%emt 0:00:00]} f6 {[%emt 0:00:58]} 56. exf6 {[%emt 0:00:00]} Kg6 {[%emt 0:00:08]} 57. Ke3 {[%emt 0:00:14]} Kxf6 {[%emt 0:00:26]} 58. Kf4 {[%emt 0:00:06]} e5+ {[%emt 0:03:38] Ke4} 1/2-1/2

[Event "6th Uppsala Young Champions 2019"]
[Site "Uppsala"]
[Date "2019.10.30"]
[Round "8.3"]
[White "Storme, Isak"]
[Black "Mihajlov, Sebastian"]
[Result "1/2-1/2"]
[ECO "C54"]
[WhiteElo "2244"]
[BlackElo "2387"]
[Annotator "NA"]
[PlyCount "113"]
[EventDate "2019.10.25"]
[EventType "swiss"]
[EventCountry "SWE"]
[SourceTitle "playchess.com"]
[Source "ChessBase"]
[SourceQuality "1"]
[TimeControl "5400+30"]

1. e4 {[%emt 0:00:00]} e5 {[%emt 0:12:04]} 2. Nf3 {[%emt 0:00:00]} Nc6 {[%emt 0:00:04]} 3. Bc4 {[%emt 0:00:00]} Nf6 {[%emt 0:00:04]} 4. d3 {[%emt 0:00:19]} Bc5 {[%emt 0:00:04]} 5. O-O {[%emt 0:00:12]} d6 {[%emt 0:00:03]} 6. c3 {[%emt 0:00:08]} a5 {[%emt 0:00:04] C54: Giuoco Piano: 4 c3 Nf6, main lines with 5 d4 and 5 d3} 7. Re1 {[%emt 0:00:35]} h6 {[%emt 0:00:03]} 8. h3 {[%emt 0:03:01]} O-O {[%emt 0:00:07]} 9. Nbd2 {[%emt 0:00:43]} Be6 {[%emt 0:00:12]} 10. Bb5 {[%emt 0:02:37]} Qb8 {[%emt 0:00:05]} 11. Nf1 {[%emt 0:01:00]} Qa7 {[%emt 0:00:03]} 12. Qe2 {[%emt 0:05:04]} a4 {[%emt 0:02:29]} 13. Ng3 $146 {[%emt 0:06:38]} ({Predecessor:} 13. Bxc6 bxc6 14. N3h2 Kh7 15. Ng3 {½-½ (48) Andriasian,Z (2591)-Vidit,S (2718) chess.com INT 2018}) 13... Kh7 {[%emt 0:21:14]} 14. Bxc6 {[%emt 0:23:37]} bxc6 {[%emt 0:00:25]} 15. d4 {[%emt 0:07:09]} exd4 {[%emt 0:00:04]} 16. cxd4 {[%emt 0:00:15]} Bxd4 {[%emt 0:00:35]} 17. Qc2 {[%emt 0:00:56]} Kh8 {[%emt 0:06:44]} 18. Nxd4 {[%emt 0:00:26]} Qxd4 {[%emt 0:00:05]} 19. Qxc6 {[%emt 0:00:13]} a3 {[%emt 0:55:01]} 20. Be3 {[%emt 0:05:32]} Qxb2 {[%emt 0:00:00]} 21. Qxc7 {[%emt 0:02:58]} Qb8 {[%emt 0:00:00]} 22. Qc3 {[%emt 0:04:12]} Rc8 {[%emt 0:00:00]} 23. Qd2 {[%emt 0:00:19]} Ng8 $14 {[%emt 0:00:00]} 24. Nf5 {[%emt 0:09:31]} Bxf5 {[%emt 0:00:00]} 25. exf5 {[%emt 0:00:08]} Qb5 {[%emt 0:00:00]} 26. g4 {[%emt 0:02:41]} d5 {[%emt 0:00:00]} 27. Bd4 {[%emt 0:01:29]} Rc4 {[%emt 0:00:00]} 28. Rad1 {[%emt 0:01:50]} Qc6 {[%emt 0:00:00]} 29. Rb1 {[%emt 0:04:48]} Rc2 {[%emt 0:00:00]} 30. Qe3 {[%emt 0:01:17]} Qd7 {[%emt 0:00:00]} 31. Rb6 {[%emt 0:02:49]} Kh7 {[%emt 0:00:00]} 32. Qb3 {[%emt 0:02:12]} Rc4 {[%emt 0:00:00]} 33. Rb7 {[%emt 0:02:17]} Qc6 {[%emt 0:00:00]} 34. Be5 {[%emt 0:02:04]} f6 {[%emt 0:00:00]} 35. Bg3 {[%emt 0:01:07]} Re8 {[%emt 0:00:00]} 36. Rd1 {[%emt 0:01:10]} Rc1 {[%emt 0:01:49]} 37. Rc7 {[%emt 0:00:41]} Rxd1+ {[%emt 0:00:03]} 38. Qxd1 {[%emt 0:00:09]} Qb5 {[%emt 0:00:01]} 39. Kh2 {[%emt 0:01:28]} Re2 {[%emt 0:00:49]} 40. Qd4 {[%emt 0:00:26]} Re7 {[%emt 0:03:12]} 41. Rc5 {[%emt 0:02:27]} Qb7 {[%emt 0:01:28]} 42. Qxd5 {[%emt 0:00:40]} Qxd5 {[%emt 0:00:26]} 43. Rxd5 {[%emt 0:00:06]} Re2 {[%emt 0:00:03]} 44. Ra5 {[%emt 0:00:20]} Rxa2 {[%emt 0:00:03]} 45. Ra7 {[%emt 0:00:26]} h5 {[%emt 0:01:19]} 46. g5 {[%emt 0:01:32]} fxg5 {[%emt 0:00:04]} 47. Kg2 {[%emt 0:00:55]} Nf6 {[%emt 0:01:46]} 48. Be5 {[%emt 0:00:33]} Kh6 {[%emt 0:01:39]} 49. Bxf6 {[%emt 0:01:34]} gxf6 {[%emt 0:00:05]} 50. Rf7 {[%emt 0:00:14]} g4 {[%emt 0:01:50]} 51. h4 {[%emt 0:00:07]} Ra1 {[%emt 0:00:09]} 52. Rxf6+ {[%emt 0:00:25]} Kg7 {[%emt 0:00:17]} 53. Ra6 {[%emt 0:00:25]} Kf7 {[%emt 0:00:07]} 54. Kg3 {[%emt 0:02:09]} a2 {[%emt 0:00:10]} 55. Kg2 {[%emt 0:00:06]} Ke7 {[%emt 0:00:04]} 56. Kh2 {[%emt 0:00:24]} Kd8 {[%emt 0:01:15]} 57. Kg2 {[%emt 0:04:06]} 1/2-1/2

[Event "6th Uppsala Young Champions 2019"]
[Site "Uppsala"]
[Date "2019.10.30"]
[Round "8.4"]
[White "Crevatin, Leo"]
[Black "Abdrlauf, Elham"]
[Result "0-1"]
[ECO "E32"]
[WhiteElo "2221"]
[BlackElo "2213"]
[Annotator "NA"]
[PlyCount "104"]
[EventDate "2019.10.25"]
[EventType "swiss"]
[EventCountry "SWE"]
[SourceTitle "playchess.com"]
[Source "ChessBase"]
[SourceQuality "1"]
[TimeControl "5400+30"]

1. d4 {[%emt 0:00:00]} Nf6 {[%emt 0:01:45]} 2. c4 {[%emt 0:00:00]} e6 {[%emt 0:01:12]} 3. Nc3 {[%emt 0:00:18]} Bb4 {[%emt 0:00:07]} 4. Qc2 {[%emt 0:00:01]} b6 {[%emt 0:00:08]} 5. e4 {[%emt 0:01:05]} c5 {[%emt 0:00:08]} 6. d5 {[%emt 0:03:22] E32: Nimzo-Indian: Classical (4 Qc2): 4...0-0} Qe7 {[%emt 0:00:08]} 7. Nge2 {[%emt 0:03:49]} exd5 {[%emt 0:00:36]} 8. exd5 {[%emt 0:00:45]} d6 {[%emt 0:01:25]} 9. Bg5 {[%emt 0:07:37]} (9. a3 Bxc3+ 10. Qxc3 O-O 11. Bg5 Nbd7 12. O-O-O h6 13. Bh4 Ne5 {½-½ (33) Fridman,D (2644)-Buhmann,R (2573) Magdeburg 2019}) 9... h6 {[%emt 0:05:25]} 10. Bh4 {[%emt 0:04:18]} Nbd7 {[%emt 0:00:39]} 11. O-O-O {[%emt 0:05:03]} O-O {[%emt 0:00:29]} 12. a3 {[%emt 0:12:39]} Ba5 {[%emt 0:04:19]} 13. Kb1 $146 {[%emt 0:12:21]} ({Predecessor:} 13. Ng3 $5 {[%cal Rg3f5]} Qe5 {0-1 (37) Olsen,F (2414)-Rasmussen,A (2541) Svendborg 2019}) 13... Ne5 {[%emt 0:06:55]} 14. Nc1 {[%emt 0:02:08]} Bxc3 {[%emt 0:08:01]} 15. Qxc3 {[%emt 0:03:01]} g5 {[%emt 0:01:09]} 16. Bg3 {[%emt 0:00:36]} Ne4 {[%emt 0:00:11]} 17. Qe1 {[%emt 0:02:02]} f5 {[%emt 0:07:39]} 18. f3 {[%emt 0:12:30]} Nxg3 {[%emt 0:00:29]} 19. hxg3 {[%emt 0:00:21]} Qf6 {[%emt 0:00:13]} 20. f4 {[%emt 0:03:30]} Ng4 {[%emt 0:00:47]} 21. Be2 {[%emt 0:01:48]} Ne3 {[%emt 0:02:56]} 22. Rd3 {[%emt 0:00:10]} Nxc4 {[%emt 0:00:48]} 23. Rc3 {[%emt 0:02:14] [#]} b5 $1 {[%emt 0:01:07]} 24. Bxc4 {[%emt 0:00:34]} bxc4 {[%emt 0:00:05]} 25. fxg5 $17 {[%emt 0:00:45]} hxg5 {[%emt 0:00:10]} 26. Rxc4 {[%emt 0:09:41]} Bb7 {[%emt 0:01:41]} 27. Qd2 {[%emt 0:01:31]} Kg7 {[%emt 0:02:05]} 28. Rh5 {[%emt 0:01:26]} Kg6 {[%emt 0:00:33]} 29. Rch4 {[%emt 0:02:30]} Rh8 {[%emt 0:02:37]} 30. Rxh8 {[%emt 0:00:34]} Rxh8 {[%emt 0:00:02]} 31. Rxh8 {[%emt 0:00:14]} Qxh8 {[%emt 0:00:02]} 32. Ne2 {[%emt 0:03:25]} Qe5 {[%emt 0:01:08]} 33. Nc3 {[%emt 0:00:17]} Qxg3 {[%emt 0:01:26]} 34. b4 {[%emt 0:00:57]} cxb4 {[%emt 0:00:43]} 35. axb4 {[%emt 0:00:07]} Qf4 {[%emt 0:01:18]} 36. Qxf4 {[%emt 0:03:44]} gxf4 {[%emt 0:00:02]} 37. Kc2 {[%emt 0:00:15]} Kf6 {[%emt 0:01:16]} 38. Nb5 {[%emt 0:01:07]} Ke5 {[%emt 0:01:09]} 39. Nxa7 {[%emt 0:00:26]} Bxd5 {[%emt 0:00:02]} 40. Kd2 {[%emt 0:00:47]} Bxg2 {[%emt 0:00:08]} 41. b5 {[%emt 0:01:00]} Bb7 {[%emt 0:00:16]} 42. b6 {[%emt 0:00:19]} Kd4 {[%emt 0:00:49]} 43. Nb5+ {[%emt 0:01:07]} Kc5 {[%emt 0:00:03]} 44. Nc3 {[%emt 0:00:17]} Kxb6 {[%emt 0:00:08]} 45. Ne2 {[%emt 0:00:42]} f3 {[%emt 0:00:03]} 46. Nd4 {[%emt 0:00:13]} Be4 {[%emt 0:00:08]} 47. Ke3 {[%emt 0:00:14]} d5 {[%emt 0:00:13]} 48. Ne6 {[%emt 0:00:11]} Kb5 {[%emt 0:00:16]} 49. Nd4+ {[%emt 0:00:14]} Kc4 {[%emt 0:00:07]} 50. Ne6 {[%emt 0:00:07]} Kc3 {[%emt 0:00:06]} 51. Kf2 {[%emt 0:01:00]} d4 {[%emt 0:00:20]} 52. Nc7 {[%emt 0:00:32]} Bc6 {[%emt 0:00:47]} 0-1

[Event "6th Uppsala Young Champions 2019"]
[Site "Uppsala"]
[Date "2019.10.30"]
[Round "8.5"]
[White "Berglind, Axel"]
[Black "Papunidi, Matvey"]
[Result "1-0"]
[ECO "D02"]
[WhiteElo "2062"]
[BlackElo "2083"]
[Annotator "NA RC"]
[PlyCount "47"]
[EventDate "2019.10.25"]
[EventType "swiss"]
[EventCountry "SWE"]
[SourceTitle "playchess.com"]
[Source "ChessBase"]
[SourceQuality "1"]
[TimeControl "5400+30"]

1. d4 {[%emt 1:30:30]} d5 {[%emt 1:30:30]} 2. Nf3 {[%emt 0:00:30]} Nf6 {[%emt 0:00:30]} 3. g3 {[%emt 0:00:30]} c5 {[%emt 0:00:30]} 4. Bg2 {[%emt 0:00:30]} cxd4 {[%emt 0:00:30]} 5. O-O {[%emt 0:00:30]} h6 {[%emt 0:00:30]} 6. Bf4 {[%emt 0:00:30] D02: 1 d4 d5 2 Nf3 sidelines, including 2...Nf6 3 g3 and 2...Nf6 3 Bf4} (6. Nxd4 e5 7. Nb3 Be6 8. c4 Nc6 9. cxd5 Bxd5 10. Nc3 Bxg2 11. Kxg2 Be7 12. Be3 O-O 13. Rc1 Rc8 14. Qxd8 Rfxd8 15. Rfd1 Rxd1 16. Rxd1 {1-0 (40) Socko,B (2627)-Tomczak,J (2631) Warsaw 2019}) 6... Nc6 {[%emt 0:00:30]} 7. Nxd4 {[%emt 0:00:30]} Qb6 {[%emt 0:00:30]} 8. Nxc6 {[%emt 0:00:30]} bxc6 {[%emt 0:00:30]} 9. c4 {[%emt 0:00:30]} Qxb2 $146 {[%emt 0:00:30]} ({Predecessor:} 9... e6 10. cxd5 exd5 11. Nc3 Be7 12. e4 dxe4 13. Nxe4 O-O {½-½ (29) Marculescu,G (1829)-Ponting,A (1989) LSS email 2009}) 10. cxd5 {[%emt 0:00:30]} Qxa1 {[%emt 0:00:30]} 11. Qc2 {[%emt 0:00:30]} cxd5 {[%emt 0:00:30]} 12. Qc6+ {[%emt 0:00:30] Double Attack} Nd7 {[%emt 0:00:30]} 13. Rc1 {[%emt 0:00:30]} e5 {[%emt 0:00:30]} (13... e6 $142 14. Qxa8 Nb6 15. Qxa7 (15. Rxc8+ Nxc8 16. Qxc8+ Ke7 $18) 15... Qb2) 14. Qxa8 {[%emt 0:00:30]} Nb6 {[%emt 0:00:30]} 15. Rxc8+ {[%emt 0:00:30]} Nxc8 {[%emt 0:00:30]} 16. Qxc8+ {[%emt 0:00:30]} Ke7 {[%emt 0:00:30]} 17. Qb7+ {[%emt 0:00:30]} Kf6 {[%emt 0:00:30]} 18. Bxd5 {[%emt 0:00:30]} exf4 {[%emt 0:00:30]} 19. Qxf7+ {[%emt 0:00:30]} Ke5 {[%emt 0:00:30]} 20. Qe6+ {[%emt 0:00:30]} Kd4 {[%emt 0:00:30]} 21. Be4 {[%emt 0:00:30]} Kc5 {[%emt 0:00:30]} 22. Qc6+ {[%emt 0:00:30]} Kb4 {[%emt 0:00:30]} 23. a3+ {[%emt 0:00:30]} Ka5 {[%emt 0:00:30]} 24. Bd3 {[%emt 0:00:30]} 1-0

[Event "6th Uppsala Young Champions 2019"]
[Site "Uppsala"]
[Date "2019.10.30"]
[Round "8.7"]
[White "Carlsson, Ludvig"]
[Black "Vitenberg, Noam Aviv"]
[Result "1-0"]
[ECO "B10"]
[WhiteElo "2066"]
[BlackElo "2223"]
[Annotator "NA"]
[PlyCount "105"]
[EventDate "2019.10.25"]
[EventType "swiss"]
[EventCountry "SWE"]
[SourceTitle "playchess.com"]
[Source "ChessBase"]
[SourceQuality "1"]
[TimeControl "5400+30"]

1. e4 {[%emt 0:03:39]} c6 {[%emt 0:00:00]} 2. Nf3 {[%emt 0:00:10]} d5 {[%emt 0:00:00]} 3. d3 {[%emt 1:27:41]} dxe4 {[%emt 0:13:01]} 4. dxe4 {[%emt 0:00:08]} Qxd1+ {[%emt 0:00:08]} 5. Kxd1 {[%emt 1:28:30]} Bg4 {[%emt 0:01:54]} 6. Be2 {[%emt 0:00:08]} Nd7 {[%emt 0:05:18]} 7. Ne1 {[%emt 0:00:12]} Bxe2+ {[%emt 0:06:47]} 8. Kxe2 {[%emt 0:00:07]} e6 {[%emt 0:00:20]} 9. Nd3 {[%emt 0:07:43]} c5 {[%emt 0:05:50]} 10. Nd2 {[%emt 0:06:09]} Ne7 {[%emt 0:03:09]} 11. b3 {[%emt 0:09:55]} Nc6 {[%emt 0:05:36]} 12. Bb2 {[%emt 0:00:15]} f6 {[%emt 0:07:49]} 13. Rhc1 {[%emt 0:09:37]} Bd6 {[%emt 0:08:59]} 14. Nc4 {[%emt 0:58:49]} Bc7 {[%emt 0:01:12]} 15. a4 {[%emt 0:01:09]} Kf7 {[%emt 0:02:24]} 16. c3 $11 {[%emt 0:19:26]} Nb6 17. Nd2 c4 18. bxc4 Na5 19. c5 Nbc4 20. Nxc4 Nxc4 21. Rab1 Rab8 22. Rd1 Rhd8 23. Bc1 Ba5 24. Bf4 e5 25. Bg3 Ke6 26. f3 Rdc8 27. Nb4 Bd8 28. Bf2 Be7 29. Rd5 Na5 30. Rd2 Nc4 31. Rdd1 h5 32. Nd3 a6 33. Rb4 Na5 34. Rdb1 Kf7 35. Be3 Rc6 36. h3 Rd8 37. Rd1 Rc7 38. Bf2 Rcd7 39. Rbb1 g6 40. g4 hxg4 41. hxg4 Ke6 42. Bg3 Kf7 43. g5 Nc6 44. gxf6 Kxf6 45. Rb6 Bxc5 46. Bxe5+ Kf7 47. Nxc5 Rxd1 48. Rxb7+ Ke8 49. Bf4 Ra1 50. Rc7 Na5 51. Bg5 Rdd1 52. Re7+ Kd8 53. Rd7+ 1-0